Cogmind - Beta 10.2 *** ADVENTURER MODE // 2020.11.07 @ 20:44:04 Player: darlorth Result: Self-destructed Performance ------------- Evolutions (7) 3500 Regions Visited (11) 2200 Robots Destroyed (173) 865 Value Destroyed (7579) 7579 Prototype IDs (9) 180 Alien Tech Used (0) 0 Bonus (1596) 1596 TOTAL SCORE: 15920 Bonus ------- Triggered Max Security 1000 High Alert Combat Kills 353 Follower Combat Kills 87 Aligned with FarCom 300 Friendly Fire -144 Cogmind --------- Core Integrity 648/1300 Matter 292/300 Energy 180/180 System Corruption 13% Temperature Cool (0) Movement Treading (156) Location -3/Testing Parts ------- > --- POWER (1) -------- Light Particle Reactor > --- PROPULSION (6) --- Medium Treads Medium Treads Advanced Medium Treads Biometal Medium Treads Armored Heavy Treads > --- UTILITY (9) ------ Advanced Thermal Generator Improved Cooling System Advanced Cooling System Large Storage Unit Large Storage Unit Large Storage Unit Large Storage Unit Heavy Insulated Plating > --- WEAPON (5) ------- Gamma Rifle Quantum Rifle Compact HERF Cannon Phase Cannon > --- INVENTORY (28) --- Particle Reactor Particle Reactor Medium Treads Biometal Medium Treads Power Amplifier Advanced Heat Sink Energy Well (500) Compact Matter Pod (150) Long-range Terrain Scanner Advanced Target Analyzer Advanced Target Analyzer Energy Filter Stasis Canceller Improved Weapon Shielding Heavy Armor Plating Heavy Armor Plating Improved Medium Armor Plating Focal Shield Component Analysis Suite Long-range Tractor Beam Improved Arc Projector Quantum Rifle Disruptor Cannon YOLO Cannon Peak State ------------ > --- POWER ------------ Particle Reactor > --- PROPULSION ------- Medium Treads Medium Treads Medium Treads Biometal Medium Treads Armored Heavy Treads > --- UTILITY ---------- Improved Cooling System Advanced Cooling System Large Storage Unit Large Storage Unit Large Storage Unit Large Storage Unit Advanced Target Analyzer Recoil Nullifier Advanced Kinecellerator > --- WEAPON ----------- Gamma Rifle Advanced Plasma Cannon KE Penetrator Enhanced Gauss Cannon Linear Accelerator > --- INVENTORY -------- Particle Reactor Medium Treads Power Amplifier Advanced Heat Sink Energy Well Compact Matter Pod Long-range Terrain Scanner Advanced Target Analyzer Advanced Target Analyzer Energy Filter Improved Utility Shielding Improved Weapon Shielding Heavy Armor Plating Heavy Armor Plating Improved Medium Armor Plating Focal Shield Component Analysis Suite Heavy Tesla Rifle Quantum Rifle Disruptor Cannon Phase Cannon Advanced Plasma Cannon YOLO Cannon Hypervelocity Gauss Rifle [Rating: 129] Favorites ----------- Power Particle Reactor Engine Light Ion Engine Power Core Micro Fission Core Reactor Particle Reactor Propulsion Medium Treads Treads Medium Treads Leg Aluminum Leg Wheel Wheel Utility Large Storage Unit Device Improved Cooling System Storage Large Storage Unit Processor Advanced Target Analyzer Protection Improved Utility Shielding Weapon Gauss Cannon Energy Gun Gamma Rifle Energy Cannon Advanced Plasma Cannon Ballistic Gun KE Penetrator Ballistic Cannon Gauss Cannon Slashing Weapon Great Axe Piercing Weapon Makeshift Spear Build | -11 -10 -10 -10 -9 -8 -7 -6 -5 -4 -3 -3 ------- Run | Scr Mat Min Exi Min Mat Fac Fac Fac Fac Res Tes Slots Evolved 14 | . . . . . 4 2 2 2 2 2 . Power . | . . . . . . . . . . . . Propulsion 4 | . . . . . 2 . . . 1 1 . Utility 7 | . . . . . 1 1 2 1 1 1 . Weapon 3 | . . . . . 1 1 . 1 . . . Parts Attached 154 | 8 4 . . 3 18 10 15 26 1 65 4 Power 9 | 1 . . . . 1 . 1 1 . 4 1 Engine 3 | 1 . . . . 1 . 1 . . . . Core 1 | . . . . . . . . 1 . . . Reactor 5 | . . . . . . . . . . 4 1 Propulsion 31 | 4 1 . . 1 7 . 1 5 . 12 . Treads 26 | 1 1 . . 1 5 . 1 5 . 12 . Leg 2 | 2 . . . . . . . . . . . Wheel 3 | 1 . . . . 2 . . . . . . Hover . | . . . . . . . . . . . . Flight . | . . . . . . . . . . . . Utility 58 | 1 3 . . . 1 6 5 11 1 28 2 Device 34 | . . . . . 1 4 4 5 1 17 2 Storage 14 | 1 3 . . . . 2 . 5 . 3 . Processor 3 | . . . . . . . . 1 . 2 . Hackware . | . . . . . . . . . . . . Protection 7 | . . . . . . . 1 . . 6 . Artifact . | . . . . . . . . . . . . Weapon 56 | 2 . . . 2 9 4 8 9 . 21 1 Energy Gun 13 | . . . . 1 . . 2 1 . 9 . Energy Cannon 15 | . . . . . 2 2 4 1 . 5 1 Ballistic Gun 10 | 2 . . . . 2 . . 3 . 3 . Ballistic Cannon 15 | . . . . 1 2 2 2 4 . 4 . Launcher . | . . . . . . . . . . . . Special Weapon . | . . . . . . . . . . . . Impact Weapon . | . . . . . . . . . . . . Slashing Weapon 2 | . . . . . 2 . . . . . . Piercing Weapon 1 | . . . . . 1 . . . . . . Special Melee Weapon . | . . . . . . . . . . . . Unidentified Prototypes 1 | . . . . . . . . . . 1 . Parts Lost 14 | . . . . . . . 2 2 . 9 1 Power . | . . . . . . . . . . . . Propulsion 3 | . . . . . . . 1 . . 2 . Utility 3 | . . . . . . . 1 . . 2 . Weapon 8 | . . . . . . . . 2 . 5 1 Highest Loss Streak 2 | . . . . . . . 1 1 . 2 1 Average Slot Usage (%) 96 | . 100 100 100 97 100 100 96 98 94 93 90 Engine 5 | . 14 14 14 14 9 7 6 2 . . . Reactor 1 | . . . . . . . . . . 3 4 Treads 24 | . 18 28 28 28 19 30 25 21 21 22 23 Wheel 1 | . 9 . . . 16 . . . . . . Device 9 | . . . . . 9 7 15 11 10 13 14 Storage 23 | . 28 28 28 28 18 23 20 26 31 23 19 Protection 1 | . . . . . . . 3 . . 1 4 Energy Gun 3 | . . . . 11 4 . 3 3 . 4 9 Energy Cannon 5 | . . . . . 2 5 11 3 . 6 10 Ballistic Gun 7 | . 28 28 28 2 7 7 . 7 15 3 . Ballistic Cannon 8 | . . . . 11 11 16 8 12 10 6 2 Naked Turns . | . . . . . . . . . . . . Heaviest Build 154 | 10 38 38 38 46 60 82 100 112 113 154 153 Greatest Support 181 | 20 40 40 40 48 86 86 86 106 106 181 181 Greatest Overweight (x) 2 | . 1 . . . 2 . 1 1 1 1 . Average Overweight (x) . | . . . . . 1 . . . 1 . . Largest Inventory Capacity 28 | 6 16 16 16 16 16 22 22 28 28 28 28 Average Capacity 22 | 5 11 16 16 16 16 22 22 22 28 28 28 Most Carried 28 | 6 11 16 16 16 16 22 22 23 24 28 28 Average Carried 21 | 3 9 14 15 14 15 20 21 21 22 26 27 Final Capacity 28 | 6 16 16 16 16 16 22 22 28 28 28 28 Final Carried 28 | 6 11 16 16 15 16 22 22 23 24 28 27 Class Distribution -------------------- 61% | Hauler-Skirmisher 20% | Mutant 8% | Skirmisher 7% | Hauler-Gunner Dominant Class ---------------- Mutant | -10/Materials Mutant | -10/Mines Mutant | -10/Exiles Mutant | -9/Mines Skirmisher | -8/Materials Hauler-Skirmisher | -7/Factory Hauler-Skirmisher | -6/Factory Hauler-Skirmisher | -5/Factory Hauler-Skirmisher | -4/Factory Hauler-Skirmisher | -3/Research Hauler-Skirmisher | -3/Testing Resources | -11 -10 -10 -10 -9 -8 -7 -6 -5 -4 -3 -3 ----------- Run | Scr Mat Min Exi Min Mat Fac Fac Fac Fac Res Tes Matter Collected 5762 | 288 . 128 . 30 873 414 546 651 284 2540 8 Remotely 284 | . . . . . . . . . 284 . . Salvage Created 8091 | 76 . 203 . . 1251 315 873 633 284 4281 175 Parts 429 | 2 . 26 . . 73 14 49 31 17 208 9 Haulers Intercepted 5 | . . . . . 2 . . 1 . 2 . Recyclers Shooed 3 | . . 1 . . . . . . . 2 . Parts Field Recycled . | . . . . . . . . . . . . Retrieved Matter . | . . . . . . . . . . . . Parts Self-Destructed . | . . . . . . . . . . . . Prevented . | . . . . . . . . . . . . Kills | -11 -10 -10 -10 -9 -8 -7 -6 -5 -4 -3 -3 ------- Run | Scr Mat Min Exi Min Mat Fac Fac Fac Fac Res Tes Combat Hostiles Destroyed 120 | . . 8 . . 21 6 17 11 4 50 3 Melee 1 | . . . . . 1 . . . . . . Guns 38 | . . 8 . . 8 2 1 3 2 12 2 Cannons 73 | . . . . . 11 3 11 8 2 37 1 AOE 5 | . . . . . . . 5 . . . . Classes Destroyed 14 | 1 . 4 . . 5 3 . . . . 1 Worker 13 | . . 1 . . 2 . 3 . . 7 . Builder 13 | . . 1 . . 3 . 1 1 . 7 . Tunneler 1 | . . . . . 1 . . . . . . Hauler 5 | . . . . . 2 . . 1 . 2 . Recycler 7 | 1 . . . . 1 . 2 . . 3 . Mechanic 1 | . . . . . . 1 . . . . . Watcher 12 | . . . . . 3 2 2 1 . 4 . Swarmer 21 | . . 6 . . 4 . 6 . . 5 . Saboteur 1 | . . . . . . . . . . . 1 Grunt 34 | . . 2 . . 12 3 5 . . 11 1 Duelist 2 | . . . . . 1 . 1 . . . . Sentry 21 | . . . . . 5 . 2 3 2 9 . Hunter 11 | . . . . . . 2 . . 2 7 . Programmer 31 | . . . . . . 1 3 8 . 18 1 Best Kill Streak 14 | 1 . 2 . . 6 3 7 3 4 14 3 Combat Bots Only 6 | . . 2 . . 6 3 4 2 4 6 3 Max Kills in Single Turn 3 | 1 . 1 . . 2 1 3 2 1 3 1 Gunslinging . | . . . . . . . . . . . . Exploded 1 | . . . . . . . 1 . . . . Melee 1 | . . . . . 1 . . . . . . Uniques/NPCs Destroyed . | . . . . . . . . . . . . Combat | -11 -10 -10 -10 -9 -8 -7 -6 -5 -4 -3 -3 -------- Run | Scr Mat Min Exi Min Mat Fac Fac Fac Fac Res Tes Damage Taken 8418 | . . 171 . . 492 364 1229 918 108 3784 1352 Core 913 | . . 33 . . 50 14 119 45 . 231 421 Absorbed by Shields . | . . . . . . . . . . . . Core Remaining (%) 93 | 100 . . . 86 90 98 86 95 100 . . Volleys Fired 301 | 2 . 21 . . 67 14 36 28 7 116 10 Largest 5 | 2 . 2 . . 3 4 4 5 5 5 5 Hottest 451 | 40 . 40 . . 172 189 266 289 217 431 451 Shots Fired 1157 | 4 . 42 . . 185 56 118 138 35 533 46 Gun 424 | 4 . 42 . . 80 14 9 53 21 182 19 Cannon 733 | . . . . . 105 42 109 85 14 351 27 Launcher . | . . . . . . . . . . . . Special . | . . . . . . . . . . . . Kinetic 657 | 4 . 42 . . 144 47 30 100 35 255 . Thermal 290 | . . . . . . . 88 26 . 147 29 Explosive . | . . . . . . . . . . . . Electromagnetic 210 | . . . . . 41 9 . 12 . 131 17 Robot Hit Streak 63 | 3 . 19 . . 18 11 16 22 23 63 33 Robot Miss Streak 4 | . . 1 . . 4 2 4 2 1 2 1 Penetration Max 1 | . . . . . 1 . 1 1 . 1 . Secondary Targets 1 | . . 1 . . . . . . . . . Max Gunslinging Chain 1 | . . 1 . . . . . . . . . Shots Hit Robots 774 | 3 . 33 . . 115 41 56 98 25 364 39 Core Hits 310 | 2 . 14 . . 47 18 37 29 10 141 12 Critical Hits 68 | . . . . . 3 1 1 3 6 53 1 Critical Kills 25 | . . . . . . 1 . . 3 21 . Critical Parts Destroyed 38 | . . . . . 3 . 1 3 1 29 1 Melee Attacks 1 | . . . . . 1 . . . . . . Impact . | . . . . . . . . . . . . Slashing . | . . . . . . . . . . . . Piercing 1 | . . . . . 1 . . . . . . Sneak Attacks . | . . . . . . . . . . . . Combat Hostiles . | . . . . . . . . . . . . Follow-up Attacks . | . . . . . . . . . . . . Damage Inflicted 21933 | 24 . 337 . . 2450 883 3034 2575 395 10815 1420 Guns 6337 | 24 . 337 . . 1153 240 81 816 217 2983 486 Cannons 13676 | . . . . . 1262 570 1535 1612 178 7631 888 Explosions 1805 | . . . . . . 53 1418 147 . 187 . Melee 35 | . . . . . 35 . . . . . . Ramming 80 | . . . . . . 20 . . . 14 46 Kinetic 9842 | 24 . 337 . . 1786 547 304 1721 395 4728 . Thermal 8348 | . . . . . . . 2642 605 . 4226 875 Explosive 235 | . . . . . . . 88 147 . . . Electromagnetic 3393 | . . . . . 629 316 . 102 . 1847 499 Impact . | . . . . . . . . . . . . Slashing . | . . . . . . . . . . . . Piercing 35 | . . . . . 35 . . . . . . Highest Corruption 13 | . 1 1 1 1 . 1 2 8 . 13 13 Average Corruption 5 | . 1 1 1 1 . 1 1 6 . 9 13 Corruption Purged . | . . . . . . . . . . . . Effects 236 | . . 5 2 . . . 9 30 . 171 19 Message Errors 41 | . . 2 1 . . . 4 4 . 26 4 Matter Fused 32 | . . . . . . . . 10 . 22 . Heat Flow Errors 12 | . . . . . . . 1 2 . 8 1 Energy Discharges 16 | . . 1 1 . . . 2 2 . 9 1 Parts Rejected 1 | . . . . . . . . . . 1 . Data Loss (minor) 26 | . . 2 . . . . 1 7 . 14 2 Data Loss (major) 8 | . . . . . . . . . . 6 2 Misfires 4 | . . . . . . . . . . 4 . Alerts 2 | . . . . . . . . . . 1 1 Misdirections 13 | . . . . . . . . . . 12 1 Targeting Errors 61 | . . . . . . . 1 4 . 51 5 Weapon Failures 20 | . . . . . . . . 1 . 17 2 Overload Shots . | . . . . . . . . . . . . Overflow Damage 477 | . . . . . 48 29 85 73 . 205 37 Projectiles 413 | . . . . . 48 29 21 73 . 205 37 Explosions 64 | . . . . . . . 64 . . . . Melee . | . . . . . . . . . . . . Knockbacks 61 | . . . . . 7 10 2 5 1 35 1 Impact 1 | . . . . . . . . . . . 1 Kinetic 57 | . . . . . 7 10 1 5 1 33 . Secondary 3 | . . . . . . . 1 . . 2 . Self-Inflicted Damage 264 | . . . . . 80 13 136 . . 35 . Shots 5 | . . . . . 1 1 2 . . 1 . Rammed 7 | . . . . . . 1 . . . 1 5 Targets Rammed 8 | . . . . . . 2 . . . 1 5 Kicked . | . . . . . . . . . . . . Crushed 1 | . . . . . . 1 . . . . . Highest Temperature 616 | . . 9 . . 132 147 141 127 39 343 616 Average Temperature 64 | . . 9 . . 24 55 49 20 21 70 284 Received Heat Transfer 930 | . . 42 . . 198 99 228 45 9 240 69 Effects 6 | . . . . . . . . . . . 6 Shutdowns 2 | . . . . . . . . . . . 2 Energy Bleed 1 | . . . . . . . . . . . 1 Damage (major) 1 | . . . . . . . . . . . 1 Damage (core) 2 | . . . . . . . . . . . 2 Siege Activations . | . . . . . . . . . . . . Robots Corrupted 3 | . . . . . 1 1 . . . 1 . Combat Hostiles 3 | . . . . . 1 1 . . . 1 . Parts Fried 10 | . . . . . 1 2 . . . 5 2 Impact Corruptions 1 | . . . . . . . . . . 1 . Robots Melted . | . . . . . . . . . . . . Combat Hostiles . | . . . . . . . . . . . . Parts Melted 20 | . . . . . . . 2 . . 16 2 Heat Transferred 10901 | . . . . . . . 3130 831 . 5872 1068 Parts Sabotaged . | . . . . . . . . . . . . Parts Stolen . | . . . . . . . . . . . . Parts Stripped . | . . . . . . . . . . . . Power Chain Reactions 2 | . . . . . . . . . . 2 . Missiles Intercepted . | . . . . . . . . . . . . Alert | -11 -10 -10 -10 -9 -8 -7 -6 -5 -4 -3 -3 ------- Run | Scr Mat Min Exi Min Mat Fac Fac Fac Fac Res Tes Peak Influence 1715 | 5 7 172 . 21 510 200 464 313 144 621 1715 Initial 261 | . 2 2 . . 6 195 40 98 . 65 261 Average 199 | 2 5 59 . 2 238 60 258 98 75 224 1607 Maximum Alert Level 5 | . . . . . 2 1 2 1 . 2 5 Low Security (%) 67 | 100 100 100 . 100 45 96 30 93 100 57 . Level 1 20 | . . . . . 26 3 58 6 . 25 . Level 2 10 | . . . . . 27 . 11 . . 17 . Level 3 . | . . . . . . . . . . . . Level 4 . | . . . . . . . . . . . . Level 5 . | . . . . . . . . . . . . High Security . | . . . . . . . . . . . . Max Security 2 | . . . . . . . . . . . 99 Squads Dispatched 40 | . . . . 1 2 3 5 4 2 11 12 Investigation 5 | . . . . 1 . 2 1 . . 1 . Extermination 11 | . . . . . . 1 2 3 . 5 . Reinforcement 8 | . . . . . 1 . 2 1 2 2 . Assault 13 | . . . . . 1 . . . . . 12 Garrison 3 | . . . . . . . . . . 3 . Intercept . | . . . . . . . . . . . . Construction Impeded 4 | . . . . . 1 . 1 1 . 1 . Haulers Reinforced 1 | . . . . . . . . . . 1 . Stealth | -11 -10 -10 -10 -9 -8 -7 -6 -5 -4 -3 -3 --------- Run | Scr Mat Min Exi Min Mat Fac Fac Fac Fac Res Tes Distress Signals 5 | . . . . . 3 . 1 . . 1 . Communications Jammed . | . . . . . . . . . . . . Distress Signals . | . . . . . . . . . . . . Times Spotted 188 | . . 12 . . 33 9 27 13 6 57 31 Peak Tracking Total 26 | . . 3 . . 5 3 6 3 4 6 26 Tactical Retreats 16 | . . 1 . . 5 . 5 1 . 2 2 Traps | -11 -10 -10 -10 -9 -8 -7 -6 -5 -4 -3 -3 ------- Run | Scr Mat Min Exi Min Mat Fac Fac Fac Fac Res Tes Traps Triggered 4 | . 1 . . . . 1 1 1 . . . Indirectly . | . . . . . . . . . . . . Trap Hack Attempts . | . . . . . . . . . . . . Triggered . | . . . . . . . . . . . . Disarmed . | . . . . . . . . . . . . Reprogrammed . | . . . . . . . . . . . . Reused . | . . . . . . . . . . . . Traps Extracted . | . . . . . . . . . . . . Installed . | . . . . . . . . . . . . Triggered . | . . . . . . . . . . . . Machines | -11 -10 -10 -10 -9 -8 -7 -6 -5 -4 -3 -3 ---------- Run | Scr Mat Min Exi Min Mat Fac Fac Fac Fac Res Tes Machines Disabled 17 | . . 1 . . 4 2 3 3 . 4 . Max in Single Turn 2 | . . . . . 2 1 2 1 . 1 . Garrison Access 1 | . . . . . . . . . . 1 . Machines Sabotaged . | . . . . . . . . . . . . Garrisons Compromised . | . . . . . . . . . . . . Overloaded Fab Kills . | . . . . . . . . . . . . Fab Network Shutdowns . | . . . . . . . . . . . . Hacking | -11 -10 -10 -10 -9 -8 -7 -6 -5 -4 -3 -3 --------- Run | Scr Mat Min Exi Min Mat Fac Fac Fac Fac Res Tes Machines Accessed 28 | . 3 1 . 1 4 5 5 6 . 3 . Terminals 16 | . 2 1 . . 4 3 3 2 . 1 . Fabricators 4 | . . . . . . 2 1 1 . . . Repair Stations 2 | . . . . . . . . 1 . 1 . Recycling Units 3 | . 1 . . . . . . 2 . . . Scanalyzers 1 | . . . . . . . 1 . . . . Garrison Access 1 | . . . . . . . . . . 1 . Total Hacks 71 | . 6 3 . 1 11 12 15 18 . 5 . Successful 31 | . 3 2 . 1 8 3 6 7 . 1 . Failed 40 | . 3 1 . . 3 9 9 11 . 4 . Catastrophic 11 | . . . . . . . 5 2 . 4 . Database Lockouts . | . . . . . . . . . . . . Manual 29 | . 5 . 1 . . 7 7 7 . 2 . Terminals 44 | . 5 3 . . 11 7 9 7 . 2 . Fabricators 8 | . . . . . . 5 1 2 . . . Repair Stations 5 | . . . . . . . . 4 . 1 . Recycling Units 6 | . 1 . . . . . . 5 . . . Scanalyzers 5 | . . . . . . . 5 . . . . Garrison Access 2 | . . . . . . . . . . 2 . Terminal Hacks 22 | . 2 2 . 1 8 3 3 3 . . . Part Schematic 1 | . 1 . . . . . . . . . . Prototype ID Bank 1 | . . . . . 1 . . . . . . Open Door 1 | . . . . 1 . . . . . . . Emergency Access Points 1 | . . . . . 1 . . . . . . Terminal Index 3 | . 1 . . . 1 . 1 . . . . Alert Level 3 | . . 1 . . . 2 . . . . . Unreport Threat 3 | . . . . . . 1 . 2 . . . Locate Traps 3 | . . . . . 2 . 1 . . . . Dispatch Records 2 | . . . . . . . 1 1 . . . Maintenance Status 1 | . . . . . 1 . . . . . . Zone Layout 3 | . . 1 . . 2 . . . . . . Fabricator Hacks 1 | . . . . . . . . 1 . . . Load Schematic 1 | . . . . . . . . 1 . . . Repair Station Hacks 2 | . . . . . . . . 2 . . . Scan Component 1 | . . . . . . . . 1 . . . Repair 1 | . . . . . . . . 1 . . . Recycling Unit Hacks 2 | . 1 . . . . . . 1 . . . Retrieve Components 2 | . 1 . . . . . . 1 . . . Scanalyzer 3 | . . . . . . . 3 . . . . Insert Component 2 | . . . . . . . 2 . . . . Analyze 1 | . . . . . . . 1 . . . . Garrison Access Hacks 1 | . . . . . . . . . . 1 . Seal Access 1 | . . . . . . . . . . 1 . Unauthorized Hacks . | . . . . . . . . . . . . Terminals . | . . . . . . . . . . . . Fabricators . | . . . . . . . . . . . . Repair Stations . | . . . . . . . . . . . . Recycling Units . | . . . . . . . . . . . . Scanalyzers . | . . . . . . . . . . . . Garrison Access . | . . . . . . . . . . . . Data Cores Recovered . | . . . . . . . . . . . . Used . | . . . . . . . . . . . . Hacking Detections 20 | . 1 1 . . 2 5 3 5 . 3 . Full Trace Events 4 | . . . . . . 2 1 . . 1 . Feedback Events 1 | . . . . . . 1 . . . . . Corruption 1 | . . . . . . 1 . . . . . Feedback Blocked . | . . . . . . . . . . . . Robot Schematics Acquired . | . . . . . . . . . . . . Robots Built . | . . . . . . . . . . . . Matter . | . . . . . . . . . . . . Time . | . . . . . . . . . . . . Total Robot Build Rating . | . . . . . . . . . . . . Part Schematics Acquired 2 | . 1 . . . . . 1 . . . . Parts Built . | . . . . . . . . . . . . Matter . | . . . . . . . . . . . . Time . | . . . . . . . . . . . . Total Part Build Rating . | . . . . . . . . . . . . Parts Repaired . | . . . . . . . . . . . . Time 38 | . . . . . . . . 38 . . . Parts Recycled . | . . . . . . . . . . . . Recycled Matter . | . . . . . . . . . . . . Retrieved Matter . | . . . . . . . . . . . . Retrieved Components 9 | . 3 . . . . . . 6 . . . Parts Scanalyzed 1 | . . . . . . . 1 . . . . Part Schematics Acquired 1 | . . . . . . . 1 . . . . Parts Damaged . | . . . . . . . . . . . . Bothacking | -11 -10 -10 -10 -9 -8 -7 -6 -5 -4 -3 -3 ------------ Run | Scr Mat Min Exi Min Mat Fac Fac Fac Fac Res Tes Used RIF Installer . | . . . . . . . . . . . . Robots Hacked . | . . . . . . . . . . . . Non-combat . | . . . . . . . . . . . . Combat . | . . . . . . . . . . . . Robot Hacks Applied . | . . . . . . . . . . . . Relay Couplers Released . | . . . . . . . . . . . . Robots Rewired . | . . . . . . . . . . . . Allies Hacked . | . . . . . . . . . . . . Hacks Repelled . | . . . . . . . . . . . . Allies | -11 -10 -10 -10 -9 -8 -7 -6 -5 -4 -3 -3 -------- Run | Scr Mat Min Exi Min Mat Fac Fac Fac Fac Res Tes Total Allies 3 | . . 3 . . . . . . . . . Largest Group 3 | . . 3 2 2 2 . . . . . . Highest-Rated Group 40 | . . 40 32 32 32 . . . . . . Highest-Rated Ally 16 | . . 16 16 16 16 . . . . . . Total Orders 2 | . . . . . 2 . . . . . . STAY 1 | . . . . . 1 . . . . . . GUARD 1 | . . . . . 1 . . . . . . Ally Attacks 22 | . . 12 . 5 5 . . . . . . Total Damage 190 | . . 109 . 30 51 . . . . . . Kills 6 | . . 4 . 1 1 . . . . . . Allies Corrupted . | . . . . . . . . . . . . Allies Melted . | . . . . . . . . . . . . Intel | -11 -10 -10 -10 -9 -8 -7 -6 -5 -4 -3 -3 ------- Run | Scr Mat Min Exi Min Mat Fac Fac Fac Fac Res Tes Robot Analysis Total . | . . . . . . . . . . . . Derelict Logs Recovered 1 | . . . . 1 . . . . . . . Drone Launches . | . . . . . . . . . . . . Drone Recoveries . | . . . . . . . . . . . . Exploration | -11 -10 -10 -10 -9 -8 -7 -6 -5 -4 -3 -3 ------------- Run | Scr Mat Min Exi Min Mat Fac Fac Fac Fac Res Tes Turns Passed 10447 | 90 154 877 490 349 1051 1297 1420 1280 104 3080 255 Spaces Moved 5436 | 60 118 499 306 207 583 753 716 627 35 1404 128 Core 10 | 10 . . . . . . . . . . . Treads 4919 | . 29 499 306 207 215 753 716 627 35 1404 128 Legs 47 | 47 . . . . . . . . . . . Wheels 460 | 3 89 . . . 368 . . . . . . Hover . | . . . . . . . . . . . . Flight . | . . . . . . . . . . . . Fastest Speed 50 | 50 100 160 160 160 100 151 151 155 182 156 156 Average Speed 157 | 107 121 160 160 160 131 151 169 173 182 162 156 Slowest Speed 210 | 120 160 160 160 160 210 151 173 183 182 182 156 Overloaded Moves . | . . . . . . . . . . . . Propulsion Burnouts . | . . . . . . . . . . . . Robots Hopped . | . . . . . . . . . . . . Cave-ins Triggered . | . . . . . . . . . . . . Exploration Rate (%) 30 | 6 18 84 65 37 55 18 24 17 1 34 9 Regions Visited 11 Branch Regions 4 Pre-discovered Areas . | . . . . . . . . . . . . Known Exits Taken . | . . . . . . . . . . . . Unknown Exits Taken 11 | 1 1 1 1 1 1 1 1 1 1 1 . Scrap Searched 2 | . . 1 . 1 . . . . . . . Spaces Dug 14 | . . . . . 8 . 3 . . 3 . Terrain Destroyed 408 | . . . . . 59 5 195 38 2 109 . Melee . | . . . . . . . . . . . . Projectile 184 | . . . . . 41 5 27 19 2 90 . AOE 224 | . . . . . 18 . 168 19 . 19 . Terrain Rammed . | . . . . . . . . . . . . Walls Destroyed . | . . . . . . . . . . . . Machines Disabled . | . . . . . . . . . . . . Actions | -11 -10 -10 -10 -9 -8 -7 -6 -5 -4 -3 -3 --------- Run | Scr Mat Min Exi Min Mat Fac Fac Fac Fac Res Tes Total 6531 | 81 127 540 308 230 722 881 802 742 56 1889 153 Wait 404 | . . 14 . 3 28 71 13 31 12 229 3 Move 5425 | 59 117 498 305 206 582 752 715 626 34 1403 128 Hop . | . . . . . . . . . . . . Pick Up 131 | 12 5 6 1 8 12 18 11 13 2 42 1 Fast Attach 12 | . 1 . . . 3 1 . 5 . 2 . Attach 47 | 6 . . . 2 4 2 7 5 1 19 1 Detach 1 | . . . . . . . 1 . . . . Swap 95 | 2 3 . . 1 11 7 8 16 . 44 3 Drop 106 | . 1 1 2 10 14 14 11 18 . 33 2 Fire 301 | 2 . 21 . . 67 14 36 28 7 116 10 Melee 1 | . . . . . 1 . . . . . . Ram . | . . . . . . . . . . . . Kick . | . . . . . . . . . . . . Crush 8 | . . . . . . 2 . . . 1 5 Escape Stasis . | . . . . . . . . . . . . Rewire . | . . . . . . . . . . . . Trap . | . . . . . . . . . . . . Miscellaneous . | . . . . . . . . . . . . Route ------- -11/Scrapyard -10/Materials -10/Mines (discovered 3 exits: [*Mat x2] / *Exi) -10/Exiles -9/Mines -8/Materials (discovered 2 exits: *Fac x2) -7/Factory -6/Factory -5/Factory -4/Factory -3/Research -3/Testing History --------- Turn | Location | Event 7 | -11/Scrapyard | Discovered new exit (range 14) 91 | -11/Scrapyard | Entered Materials 230 | -10/Materials | Discovered new exit (range 8) 245 | -10/Materials | Entered Mines 314 | -10/Mines | Build established: Mutant 423 | -10/Mines | Assisted by bots powering up and referring to "LRC-V3" 777 | -10/Mines | A weapon hastily lodged in a ceiling crevice suddenly fell to the ground 818 | -10/Mines | Discovered new exit (range 7) 833 | -10/Mines | Received a Rocket Launcher from a helpful Derelict 1024 | -10/Mines | Discovered new exit (range 6) 1114 | -10/Mines | Deemed a non-threat by the Exiles lab entrance 1114 | -10/Mines | Discovered new exit (range 5) 1122 | -10/Mines | Entered Exiles 1122 | -10/Exiles | Accompanied by 2 allies 1166 | -10/Exiles | Met 8R-AWN 1188 | -10/Exiles | Met EX-HEX 1239 | -10/Exiles | Met EX-BIN 1257 | -10/Exiles | Aligned with FarCom system 1258 | -10/Exiles | Given EX-Vault access code 1303 | -10/Exiles | Opened EX-Vault 1312 | -10/Exiles | Found Prototype Energy Cannon 1347 | -10/Exiles | Warned to stay clear of 0b10 Research branches 1388 | -10/Exiles | Met EX-DEC 1588 | -10/Exiles | Discovered new exit (range 14) 1612 | -10/Exiles | Left Exiles lab with YOLO Cannon 1612 | -10/Exiles | Entered Mines 1612 | -9/Mines | Accompanied by 2 allies 1621 | -9/Mines | Met a Derelict shopkeep closing up shop 1719 | -9/Mines | Learned location of 1 exit from Lower Caves 1728 | -9/Mines | Met a Derelict testing a Signal Generator 1738 | -9/Mines | Found Signal Generator 1939 | -9/Mines | Discovered new exit (range 15) 1961 | -9/Mines | Entered Materials 1961 | -8/Materials | Accompanied by 2 allies 1961 | -8/Materials | Evolved 4 slots: Propulsion x2, Utility x1, Weapon x1 2173 | -8/Materials | Discovered new exit (range 12) 2420 | -8/Materials | Build established: Skirmisher 2983 | -8/Materials | Discovered new exit (range 14) 3012 | -8/Materials | Entered Factory 3012 | -7/Factory | Evolved 2 slots: Utility x1, Weapon x1 3217 | -7/Factory | Identified YOLO Cannon 3297 | -7/Factory | Build established: Hauler-Skirmisher 4206 | -7/Factory | Discovered new exit (range 15) 4309 | -7/Factory | Entered another Factory area 4309 | -6/Factory | Evolved 2 slots: Utility x2 5694 | -6/Factory | Discovered new exit (range 15) 5729 | -6/Factory | Entered another Factory area 5729 | -5/Factory | Evolved 2 slots: Utility x1, Weapon x1 6971 | -5/Factory | Discovered new exit (range 15) 7009 | -5/Factory | Entered another Factory area 7009 | -4/Factory | Evolved 2 slots: Propulsion x1, Utility x1 7067 | -4/Factory | Discovered new exit (range 15) 7113 | -4/Factory | Entered Research 7113 | -3/Research | Evolved 2 slots: Propulsion x1, Utility x1 8466 | -3/Research | System corruption reached 10% 8921 | -3/Research | Garrison activated, responded to threat 9282 | -3/Research | Found Prototype Device 9283 | -3/Research | Identified Adv. Kinecellerator 9325 | -3/Research | Build established: Hauler-Gunner 9716 | -3/Research | Found Hvy. Insulated Plating 10003 | -3/Research | Build established: Hauler-Skirmisher 10158 | -3/Research | Discovered new exit (range 13) 10193 | -3/Research | Entered Testing 10194 | -3/Testing | Maximum security lockdown engaged 10417 | -3/Testing | Core integrity fell below 50% 10448 | -3/Testing | Self-destructed Last Messages --------------- 10418_ Unknown Leg fried. 10418_ Lgt. Antimatter Reactor fried. 10418_ G-67 Veteran destroyed. 10419_ Overheating: Biometal Medium Treads damaged (-90). 10431_ System corrupted: Energy discharge (-46). 10436_ Penetrated by Slug. 10440_ Slug penetrates Wall. 10440_ Penetrated by Slug. 10440_ Slug penetrates Wall. 10441_ C-30 ARC bursts open, deploying its payload. 10441_ G-73 Enforcer unfolds itself. 10441_ B-74 Champion unfolds itself. 10441_ G-67 Veteran unfolds itself. 10441_ L-61 Swordsman unfolds itself. 10441_ E-15 Imp unfolds itself. 10443_ Slug penetrates Wall. 10444_ Adv. Plasma Cannon destroyed. 10446_ System corrupted: Component data lost. 10446_ Penetrated by Slug. 10446_ Slug penetrates Wall. Map ----- +----------------------------------------------------+ | | | | | | | | | | | | | | | | | | | | | | | | | ???????????????????????????? | | ???????????????????????????? | | ???????????????????????????? | | ???????????????????????????? | | ???????????????????????????? | | ???????????????????????????? | | ???????????????????????????? | | ???????????????????????????? | | ????????????????##########?? | | ????????????????# #?? | | ????????????????# """ #?? | | ?#######????????# "R #?? | | ?# b #????????# """ ! #?? | | ?# @l g########## """ #?? | | ?# b g Cl / #?? | | ?# ########## #?? | | ?# ig #????????# #?? | | ?### ###????????# = #?? | | ???#h#??????????#####+###### | | ???#!#???????????# | | ???#!#???????????# | | ???#g#???????????# """ | | ???#b#???????????# """ | | ???#%#???????????#### """ | | ???#g#??????????????# """ | | ???#h#??????????????# """ | | ???#g#??????????????# | | ???#=#??????????????+ """ | | ???#g#??????????????? ^ """ | | ???#b#??????????????? """ | | ???# #???????????????# ""?? | | ???# #???????????????? ""?? | | ???#g#???????????????? ??? | | ???# #???????????????? ??? | | ???# #???????????????? ??? | | ???#!#?????????????????? ??? | | ???#%#?????????????????????? | | ???#=############??????????? | +----------------------------------------------------+ Best States ------------- Heat Dissipation 104 Energy Generation 23 Energy Capacity 840 Matter Stores 550 Matter Capacity 700 Sight Range 16 Terrain Scan Range 24 Terrain Scan Density 10 Power Amplification 20 Armor Coverage 600 Resistance: KI 40 Resistance: TH 20 Resistance: EX 20 Resistance: EM 50 Resistance: I 20 Resistance: S 20 Resistance: P 20 Utility Shielding 66 Weapon Shielding 66 Evasion (%) 50 Targeting Accuracy 8 Target Analysis 8 Core Analysis 8 Recoil Reduction 12 Energy Filtering 30 Offensive Hacking 10 Item Schematics ----------------- Lrg. Storage Unit | -10/Materials | Hacked Adv. Targeting Computer | -6/Factory | Scanalyzed Robot Schematics ------------------ None Fabricated ------------ Nothing Alien Tech Used ----------------- None Achievements -------------- Tank Challenges ------------ None Game ------ Seed UtilityLayeredSegregator Manual? 0 Play Time 02:13:23 Cumulative 136.8 hours Start 2020.11.06 @ 22:01:35 End 2020.11.07 @ 20:44:04 Sessions 3 Manual Loads 0 Difficulty Adventurer Special Mode None Game No. 166 Rogue 102 Adventurer 21 Explorer 43 Win Type - Total 3 Types 2/0/1/0/0/0/0/0/0 Lore% 28 Gallery% 61 Achievement% 48 Wizard Run 0 Options --------- ASCII 0 Keyboard 0 Movement Mouse Keybinds 0 Fullscreen 1 Font 12/Smallcaps Map View 83x54 Tactical HUD 1 Map Filters NONE Filters NONE Steam 1 RUN: 61f5c47a-47c5-4484-b4b9-6565b3962955